fUSD/lending_fUSD_20260224
["ID","MTS","AMOUNT","RATE_DAILY","PERIOD"]
[406551241,1771935045496,-500.0,0.00025,2]
[406551242,1771935045505,-4697.42439603,0.0002506,2]
[406551243,1771935045515,-27376.86086096,0.00025775,2]
[406551244,1771935045524,-150.0,0.0002589,2]
[406551245,1771935045533,-365.27,0.00025925,2]
[406551246,1771935045542,-500.0,0.00026264,14]
[406551247,1771935045552,-11053.13,0.000263,2]
[406551248,1771935045561,-168.41,0.00026455,13]
[406551249,1771935045571,-8913.42,0.00026702,2]
[406551251,1771935045580,-296.09,0.00026768,2]
[406551253,1771935045589,-550.0,0.00027,2]
[406551255,1771935045598,-150.0,0.00027185,2]
[406551257,1771935045607,-160.29288222,0.00027397,2]
[406551259,1771935045616,-501.0,0.00027463,13]
[406551261,1771935045625,-182.10345202,0.00027614,2]
[406551263,1771935045634,-2982.31827642,0.00027614,2]
[406551265,1771935045643,-280.08834381,0.00027614,2]
[406551267,1771935045653,-300.64393502,0.00027713,2]
[406551269,1771935045663,-500.0,0.00027931,17]
[406551270,1771935045672,-150.0,0.00028544,2]
[406551271,1771935045682,-27376.86086096,0.00028982,2]
[406551272,1771935045695,-2000.0,0.00029,2]
[406551273,1771935045704,-600.0,0.00029,2]
[406551274,1771935045713,-2000.0,0.00029,2]
[406551275,1771935045723,-500.0,0.00029599,22]
[406551276,1771935045733,-300.0,0.00029722,2]
[406551277,1771935045743,-11053.13,0.000298,2]
[406551278,1771935045752,-150.0,0.00029843,120]
[406551279,1771935045763,-150.0,0.00029971,2]
[406551280,1771935045772,-4697.42439603,0.00030167,2]
[406551281,1771935045785,-1040.0,0.00030345,2]
[406551282,1771935045794,-1339.0,0.00030345,2]
[406551283,1771935045803,-3496.0,0.00030345,2]
[406551284,1771935045812,-618.0,0.00030345,2]
[406551285,1771935045822,-158.02,0.00030411,120]
[406551286,1771935045831,-150.597,0.00030425,2]
[406551287,1771935045840,-1277.0,0.00030425,2]
[406551288,1771935045849,-1218.319,0.00030425,2]
[406551289,1771935045858,-2455.0,0.00030425,2]
[406551290,1771935045868,-501.0,0.00030553,15]
[406551291,1771935045877,-495.35,0.000306,30]
[406551292,1771935045887,-173.628,0.00030643,2]
[406551293,1771935045896,-150.369,0.00030643,2]
[406551294,1771935045905,-150.409,0.00030643,2]
[406551295,1771935045915,-150.198,0.00030643,2]
[406551296,1771935045923,-267.735,0.00030643,2]
[406551297,1771935045933,-900.0,0.00030667,2]
[406551298,1771935045942,-650.0,0.00031,2]
[406551299,1771935045951,-1852.42,0.0003134,2]
[406551300,1771935045961,-150.0,0.0003147,2]
[406551301,1771935045970,-470.0,0.00031474,30]
[406551302,1771935045979,-159.62910539,0.00031522,2]
[406551303,1771935045988,-523.24,0.00031709,120]
[406551304,1771935045997,-523.24,0.00031709,120]
[406551305,1771935046007,-523.24,0.00031709,120]
[406551306,1771935046016,-523.24,0.00031709,120]
[406551307,1771935046025,-523.29265749,0.00031709,120]
[406551308,1771935046034,-858.26,0.00031709,120]
[406551309,1771935046044,-858.26,0.00031709,120]
[406551310,1771935046053,-858.26,0.00031709,120]
[406551311,1771935046063,-858.26,0.00031709,120]
[406551312,1771935046072,-858.47544103,0.00031709,120]
[406551313,1771935046081,-500.0,0.00031709,30]
[406551314,1771935046090,-500.0,0.00031709,30]
[406551315,1771935046100,-500.0,0.00031709,30]
[406551316,1771935046110,-339.10383034,0.00031709,30]
[406551317,1771935046119,-167.15607918,0.00032,120]
[406551318,1771935046128,-164.01584354,0.00032,120]
[406551319,1771935046137,-184.7789246,0.00032,120]
[406551320,1771935046147,-1237.69,0.00032,120]
[406551321,1771935046156,-900.0,0.00032037,2]
[406551322,1771935046166,-27376.86086096,0.00032188,2]
[406551323,1771935046175,-500.0,0.00032648,34]
[406551324,1771935046184,-2000.0,0.000327,2]
[406551325,1771935046194,-2000.0,0.000327,2]
[406551326,1771935046204,-11053.13,0.000327,2]
[406551327,1771935046213,-160.83,0.000329,14]
[406551328,1771935046222,-167.15607918,0.00033,120]
[406551329,1771935046231,-164.01584354,0.00033,120]
[406551330,1771935046240,-150.0,0.00033043,2]
[406551331,1771935046250,-243.51,0.00033114,2]
[406551332,1771935046259,-5586.0,0.000333,5]
[406551333,1771935046268,-1040.0,0.00033345,2]
[406551334,1771935046278,-1339.0,0.00033345,2]
[406551335,1771935046287,-3496.0,0.00033345,2]
[406551336,1771935046297,-1277.0,0.00033425,2]
[406551337,1771935046306,-1210.0,0.00033425,2]
[406551338,1771935046315,-2455.0,0.00033425,2]
[406551339,1771935046324,-158.38200706,0.00033592,120]
[406551340,1771935046333,-703.6,0.000336,2]
[406551341,1771935046342,-265.74,0.000336,14]
[406551342,1771935046352,-300.64393502,0.00033637,2]
[406551343,1771935046361,-501.0,0.00033644,18]
[406551344,1771935046371,-167.15607918,0.000339,120]
[406551345,1771935046380,-164.01584354,0.000339,120]
[406551346,1771935046389,-243.51,0.00034191,2]
[406551347,1771935046398,-150.0,0.00034696,2]
[406551348,1771935046408,-164.5,0.00034866,2]
[406551349,1771935046417,-167.15607918,0.00035,120]
[406551350,1771935046427,-164.01584354,0.00035,120]
[406551351,1771935046437,-160.83,0.00035,14]
[406551352,1771935046446,-1669.319,0.0003503,40]
[406551353,1771935046455,-243.51,0.00035268,2]
[406551354,1771935046465,-4697.42439603,0.00035273,2]
[406551355,1771935046475,-27376.86086096,0.00035395,2]
[406551356,1771935046484,-151.0,0.00035574,2]
[406551357,1771935046493,-156.587,0.00035574,2]
[406551358,1771935046502,-162.380719,0.00035574,2]
[406551359,1771935046512,-159.89501112,0.00035574,2]
[406551360,1771935046521,-11053.13,0.000363,2]
[406551361,1771935046531,-1339.0,0.00036345,2]
[406551362,1771935046541,-2000.0,0.000364,2]
[406551363,1771935046550,-2000.0,0.000364,2]
[406551364,1771935046560,-2455.0,0.00036425,2]
[406551365,1771935046570,-150.0,0.0003643,2]
[406551366,1771935046581,-164.5,0.00036431,2]
[406551367,1771935046591,-500.0,0.00036596,45]
[406551368,1771935046600,-501.0,0.00036734,21]
[406551369,1771935046610,-164.49489715,0.00037996,2]
[406551370,1771935046619,-422.35,0.00038034,30]
[406551371,1771935046629,-160.83,0.000381,14]
[406551372,1771935046638,-27376.86086096,0.00038602,2]
[406551373,1771935046647,-183.0,0.00038687,120]
[406551374,1771935046656,-3335.0,0.00038687,120]
[406551375,1771935046667,-398.25018667,0.00039202,2]
[406551376,1771935046677,-1339.0,0.00039345,2]
[406551377,1771935046691,-1547.127,0.00039425,2]
[406551378,1771935046701,-300.64393502,0.00039561,2]
[406551379,1771935046711,-501.0,0.00039824,24]
[406551380,1771935046722,-2000.0,0.000401,2]
[406551381,1771935046734,-2000.0,0.000401,2]
[406551382,1771935046745,-11053.13,0.000401,2]
[406551383,1771935046755,-6623.03809716,0.00040211,5]
[406551384,1771935046765,-4697.42439603,0.0004038,28]
[406551385,1771935046776,-210.686,0.000404,120]
[406551386,1771935046786,-68567.0,0.0004095,60]
[406551387,1771935046795,-29720.24065867,0.00040977,7]
[406551388,1771935046804,-668.0,0.00041,120]
[406551389,1771935046814,-160.83,0.00041,14]
[406551390,1771935046823,-200.0,0.00041159,120]
[406551391,1771935046833,-500.0,0.00041272,67]
[406551392,1771935046843,-600.0,0.000419,15]
[406551393,1771935046854,-68567.0,0.000423,60]
[406551394,1771935046863,-1339.0,0.00042345,2]
[406551395,1771935046873,-316.76,0.00042546,120]
[406551396,1771935046882,-501.0,0.00042915,26]
[406551397,1771935046893,-200.0,0.00043068,120]
[406551398,1771935046903,-1613.931096,0.0004328,2]
[406551399,1771935046913,-150.0,0.00043288,120]
[406551400,1771935046923,-160.83,0.000433,14]
[406551401,1771935046934,-68567.0,0.0004365,60]
[406551402,1771935046944,-11053.13,0.000437,2]
[406551403,1771935046954,-2000.0,0.000438,2]
[406551404,1771935046963,-1000.0,0.000438,2]
[406551405,1771935046973,-500.0,0.0004394,60]
[406551406,1771935046982,-428.29,0.0004411,120]
[406551407,1771935046992,-2858.18490911,0.00044174,2]
[406551408,1771935047002,-350.0,0.00044204,6]
[406551409,1771935047011,-25000.0,0.00044299,15]
[406551410,1771935047021,-25000.0,0.00044308,15]
[406551411,1771935047031,-25000.0,0.00044317,15]
[406551412,1771935047040,-25000.0,0.00044326,15]
[406551413,1771935047049,-19044.84189385,0.00044332,15]
[406551414,1771935047059,-800.0,0.00044537,16]
[406551415,1771935047068,-800.0,0.00044537,16]
[406551416,1771935047078,-800.0,0.00044537,16]
[406551417,1771935047088,-800.0,0.00044537,16]
[406551418,1771935047097,-800.0,0.00044537,16]
[406551419,1771935047107,-800.0,0.00044537,16]
[406551420,1771935047117,-800.0,0.00044537,16]
[406551421,1771935047126,-800.0,0.00044537,16]
[406551422,1771935047136,-792.16960129,0.00044537,32]
[406551423,1771935047145,-257.5043,0.0004468,2]
[406551424,1771935047154,-150.0,0.00044747,2]
[406551425,1771935047164,-265.74,0.00045,14]
[406551426,1771935047174,-1252.5146465,0.00045,120]
[406551427,1771935047184,-4038.23362335,0.00045,120]
[406551428,1771935047195,-68567.0,0.00045,60]
[406551429,1771935047204,-150.0,0.00045056,30]
[406551430,1771935047214,-500.24398193,0.00045056,30]
[406551431,1771935047223,-150.0,0.00045056,30]
[406551432,1771935047233,-3161.20814662,0.00045056,30]
[406551433,1771935047244,-150.0,0.00045056,30]
[406551434,1771935047253,-198.20235507,0.00045056,30]
[406551435,1771935047263,-346.16362503,0.00045068,2]
[406551436,1771935047273,-284.49243142,0.00045068,120]
[406551437,1771935047282,-150.0,0.00045068,120]
[406551438,1771935047292,-150.0,0.00045068,120]
[406551439,1771935047301,-150.0,0.00045068,120]
[406551440,1771935047311,-192.63004839,0.00045068,120]
[406551441,1771935047320,-150.0,0.00045068,120]
[406551442,1771935047330,-150.0,0.00045068,120]
[406551443,1771935047340,-150.0,0.00045068,120]
[406551444,1771935047349,-2705.0,0.00045068,2]
[406551445,1771935047359,-277.65171186,0.00045068,120]
[406551446,1771935047368,-2705.0,0.00045068,2]
[406551447,1771935047378,-2705.0,0.00045068,2]
[406551448,1771935047387,-2705.0,0.00045068,2]
[406551449,1771935047396,-2705.0,0.00045068,2]
[406551450,1771935047406,-2705.0,0.00045068,2]
[406551451,1771935047415,-2705.0,0.00045068,2]
[406551452,1771935047425,-155.51282354,0.00045068,120]
[406551453,1771935047434,-2705.0,0.00045068,2]
[406551454,1771935047445,-500.0,0.00045068,120]
[406551455,1771935047454,-2705.0,0.00045068,2]
[406551456,1771935047464,-500.0,0.00045068,120]
[406551457,1771935047473,-2705.0,0.00045068,2]
[406551458,1771935047483,-2705.0,0.00045068,2]
[406551459,1771935047493,-500.0,0.00045068,120]
[406551460,1771935047502,-2705.0,0.00045068,2]
[406551461,1771935047511,-500.0,0.00045068,120]
[406551462,1771935047521,-500.0,0.00045068,120]
[406551463,1771935047530,-2705.0,0.00045068,2]
[406551464,1771935047540,-648.05114672,0.00045068,120]
[406551465,1771935047549,-2705.0,0.00045068,2]
[406551466,1771935047559,-2705.0,0.00045068,2]
[406551467,1771935047568,-2705.0,0.00045068,2]
[406551468,1771935047578,-2705.0,0.00045068,2]
[406551469,1771935047588,-2705.0,0.00045068,2]
[406551470,1771935047597,-2705.0,0.00045068,2]
[406551471,1771935047606,-150.0,0.00045068,120]
[406551472,1771935047615,-178.51167837,0.00045068,120]
[406551473,1771935047625,-2705.0,0.00045068,2]
[406551474,1771935047634,-2705.0,0.00045068,2]
[406551475,1771935047643,-2705.0,0.00045068,2]
[406551476,1771935047652,-2705.0,0.00045068,2]
[406551477,1771935047662,-2722.15498182,0.00045068,2]
[406551478,1771935047671,-500.0,0.00045068,120]
[406551479,1771935047681,-500.0,0.00045068,120]
[406551480,1771935047695,-507.10875232,0.00045068,120]
[406551481,1771935047704,-736.0,0.0004507,30]
[406551482,1771935047714,-160.83,0.000451,14]
[406551483,1771935047723,-155.52794573,0.00045104,120]
[406551484,1771935047735,-464.587,0.0004513,2]
[406551485,1771935047744,-350.0,0.00045163,8]
[406551486,1771935047754,-150.0,0.00045205,120]
[406551487,1771935047765,-150.0,0.00045205,120]
[406551488,1771935047774,-239.20747428,0.00045247,5]
[406551489,1771935047783,-742.0,0.00045268,30]
[406551490,1771935047793,-1339.0,0.00045345,2]
[406551491,1771935047802,-600.0,0.00045479,120]
[406551492,1771935047811,-300.64393502,0.00045485,20]
[406551493,1771935047821,-4697.42439603,0.00045486,28]
[406551494,1771935047831,-182.10345202,0.00045487,2]
[406551495,1771935047840,-2982.31827642,0.00045487,2]
[406551496,1771935047849,-280.08834381,0.00045487,120]
[406551497,1771935047859,-506.23472364,0.00045494,2]
[406551498,1771935047869,-309.0,0.000455,30]
[406551499,1771935047879,-600.0,0.000455,16]
[406551500,1771935047889,-431.0,0.000455,30]
[406551501,1771935047899,-303.0,0.000455,30]
[406551502,1771935047909,-434.0,0.000455,30]
[406551503,1771935047920,-13753.9550686,0.00045545,2]
[406551504,1771935047931,-150.0,0.00045547,2]
[406551505,1771935047942,-200.0,0.00045547,7]
[406551506,1771935047951,-177.22601374,0.00045547,2]
[406551507,1771935047962,-150.0,0.00045562,30]
[406551508,1771935047973,-150.0,0.00045562,30]
[406551509,1771935047983,-159.10086542,0.00045562,30]
[406551510,1771935047993,-154.88665151,0.00045562,30]
[406551511,1771935048003,-3684.68319849,0.00045575,30]
[406551512,1771935048013,-155.42021261,0.00045577,7]
[406551513,1771935048023,-3656.15,0.00045579,30]
[406551514,1771935048033,-1500.0,0.00045584,30]
[406551515,1771935048043,-300.0,0.00045584,30]
[406551516,1771935048053,-63000.0,0.00045584,30]
[406551517,1771935048062,-300.0,0.00045585,30]
[406551518,1771935048072,-666.0,0.00045585,30]
[406551519,1771935048082,-151.0,0.00045586,120]
[406551520,1771935048092,-151.0,0.00045586,120]
[406551521,1771935048102,-151.0,0.00045586,120]
[406551522,1771935048276,-151.0,0.00045586,120]
[406551523,1771935048286,-151.0,0.00045586,120]
[406551524,1771935048296,-151.0,0.00045586,120]
[406551525,1771935048306,-167.200014,0.00045586,120]
[406551526,1771935048316,-787.713897,0.00045586,28]
[406551527,1771935048326,-787.713897,0.00045586,28]
[406551528,1771935048335,-787.713897,0.00045586,28]
[406551529,1771935048344,-787.713897,0.00045586,28]
[406551530,1771935048354,-787.713897,0.00045586,28]
[406551531,1771935048364,-787.713897,0.00045586,28]
[406551532,1771935048373,-787.713897,0.00045586,28]
[406551533,1771935048383,-787.713897,0.00045586,28]
[406551534,1771935048392,-787.713897,0.00045586,28]
[406551535,1771935048401,-787.713897,0.00045586,28]
[406551536,1771935048410,-787.713897,0.00045586,28]
[406551537,1771935048419,-787.713897,0.00045586,28]
[406551538,1771935048428,-787.713897,0.00045586,28]
[406551539,1771935048437,-787.713897,0.00045586,28]
[406551540,1771935048447,-787.713897,0.00045586,28]
[406551541,1771935048456,-787.713897,0.00045586,28]
[406551542,1771935048465,-787.713897,0.00045586,28]
[406551543,1771935048475,-787.713897,0.00045586,28]
[406551544,1771935048484,-787.713897,0.00045586,28]
[406551545,1771935048494,-787.713895,0.00045586,28]
[406551546,1771935048503,-169.41,0.00045586,120]
[406551547,1771935048513,-993.60630424,0.00045587,120]
[406551548,1771935048523,-325153.4455616,0.00045587,56]
[406551549,1771935048532,-831173.70146778,0.00045587,10]
[406551550,1771935048725,-298.62469339,0.00045587,10]
[406551551,1771935048736,-459081.53621572,0.00045587,10]
[406551552,1771935048775,-346.22909034,0.00045587,10]
[406551553,1771935049085,-419.59970936,0.00030425,2]
[406551554,1771935049284,-248.83708478,0.00030425,2]
[406551555,1771935049629,-1832.67330149,9.841e-05,2]
[406551556,1771935049640,-384.996,9.841e-05,2]
[406551570,1771935097591,5000.01,9.741e-05,2]
[406551571,1771935097612,5762.47512033,9.741e-05,2]
[406551572,1771935097632,186.81507967,9.741e-05,2]
[406551574,1771935102883,401.32,0.00018101,120]
[406551580,1771935143419,500.0,9.74e-05,2]
[406551582,1771935146365,4500.01,9.741e-05,2]
[406551583,1771935146386,5953.3632,9.741e-05,2]
[406551594,1771935167642,5000.01,9.741e-05,2]
[406551595,1771935167665,3859.83172033,9.741e-05,2]
[406551596,1771935167686,10000.01,9.741e-05,2]
[406551597,1771935167707,10000.01,9.741e-05,2]
[406551622,1771935398445,-1200.0,9.74e-05,2]
[406551623,1771935398474,-150.0,9.74e-05,2]
[406551624,1771935398502,-300.0,9.74e-05,2]
[406551625,1771935398531,-300.0,9.74e-05,2]
[406551626,1771935413852,-3486.43186094,9.741e-05,2]
[406551627,1771935413981,-10000.01,9.741e-05,2]
[406551628,1771935416471,-10000.01,9.741e-05,2]
[406551629,1771935416579,-10000.01,9.741e-05,2]
[406551630,1771935416660,-10000.01,9.741e-05,2]
[406551631,1771935416873,-10000.01,9.741e-05,2]
[406551632,1771935419414,297.82,9.7e-05,2]
[406551633,1771935419446,-10000.01,9.741e-05,2]
[406551634,1771935434215,4702.19,9.641e-05,2]
[406551635,1771935434594,-2038.6341,9.641e-05,2]
[406551636,1771935479582,922.7418,9.641e-05,2]
[406551637,1771935483772,-150.0,9.64e-05,2]
[406551641,1771935535432,270.69717652,9.5e-05,3]
[406551642,1771935535497,801.76475321,9.5e-05,3]
[406551643,1771935535539,487.95209425,9.5e-05,3]
[406551644,1771935535572,391.39435307,9.5e-05,3]
[406551645,1771935555170,912.45,6.476e-05,2]
[406551646,1771935555380,912.45,6.703e-05,2]
[406551647,1771935555624,912.45,6.93e-05,2]
[406551648,1771935555823,912.45,7.158e-05,2]
[406551649,1771935556013,912.45,7.385e-05,2]
[406551650,1771935556220,912.45,7.612e-05,2]
[406551651,1771935556421,912.45,7.839e-05,2]
[406551652,1771935556645,912.45,8.067e-05,2]
[406551653,1771935556857,912.45,8.294e-05,2]
[406551654,1771935557259,912.45,8.521e-05,2]
[406551655,1771935557463,875.51,8.748e-05,2]
[406551656,1771935557484,36.94,8.748e-05,2]
[406551657,1771935557882,912.45,8.975e-05,2]
[406551658,1771935558092,912.45,9.203e-05,2]
[406551659,1771935558323,912.45,9.43e-05,2]
[406551660,1771935583499,208.56,0.000163,120]
[406551661,1771935594487,203.726052,9.486e-05,2]
[406551662,1771935595883,900.0,9.7e-05,3]
[406551663,1771935597980,1800.0,9.8e-05,3]
[406551664,1771935600075,2800.0,9.9e-05,3]
[406551665,1771935602183,3700.0,0.0001,3]
[406551668,1771935654217,-1100.0,9.64e-05,2]
[406551669,1771935670869,175.65,8.532e-05,2]
[406551670,1771935692790,2833.841,9.448e-05,2]
[406551671,1771935692932,223.619,9.448e-05,2]
[406551672,1771935693284,208.46522091,9.5e-05,3]
[406551673,1771935760711,10000.01,9.631e-05,2]
[406551674,1771935760736,10000.01,9.631e-05,2]
[406551675,1771935760757,10000.01,9.631e-05,2]
[406551676,1771935760778,1942.55,9.631e-05,2]
[406551677,1771935792123,-376.3310646,9.631e-05,2]
[406551678,1771935792358,-752.6621292,9.631e-05,2]
[406551679,1771935792530,-1505.3242584,9.631e-05,2]
[406551680,1771935792646,-3010.6485168,9.631e-05,2]
[406551681,1771935792788,-3978.7129664,9.631e-05,2]
[406551682,1771935807147,-401.09966005,9.64e-05,2]
[406551683,1771935807175,-500.0,9.64e-05,2]
[406551684,1771935807202,-346.33351963,9.64e-05,2]
[406551685,1771935807228,-500.0,9.64e-05,2]
[406551686,1771935807255,-500.0,9.64e-05,2]
[406551687,1771935807285,-836.02310035,9.64e-05,2]
[406551688,1771935807314,-836.02310035,9.64e-05,2]
[406551689,1771935807340,-378.28023991,9.64e-05,2]
[406551690,1771935807368,-474.02245772,9.64e-05,2]
[406551691,1771935807502,-836.02310035,9.64e-05,2]
[406551692,1771935807530,-836.02310035,9.64e-05,2]
[406551693,1771935807560,-836.02310035,9.64e-05,2]
[406551694,1771935807588,-836.02310035,9.64e-05,2]
[406551695,1771935807616,-836.02310035,9.64e-05,2]
[406551696,1771935807644,-803.75589615,9.64e-05,2]
[406551697,1771935807741,-32.2672042,9.64e-05,2]
[406551698,1771935807769,-836.02310035,9.64e-05,2]
[406551699,1771935807797,-836.02310035,9.64e-05,2]
[406551700,1771935807825,-836.02310035,9.64e-05,2]
[406551701,1771935807855,-836.02310035,9.64e-05,2]
[406551702,1771935807883,-836.02310035,9.64e-05,2]
[406551703,1771935807912,-739.22148775,9.64e-05,2]
[406551704,1771935808015,-96.8016126,9.64e-05,2]
[406551705,1771935808044,-836.02310035,9.64e-05,2]
[406551706,1771935808070,-836.02310035,9.64e-05,2]
[406551707,1771935808098,-836.02310035,9.64e-05,2]
[406551708,1771935808126,-836.02310035,9.64e-05,2]
[406551709,1771935808156,-836.02310035,9.64e-05,2]
[406551710,1771935808184,-610.15267095,9.64e-05,2]
[406551711,1771935808284,-225.8704294,9.64e-05,2]
[406551712,1771935808322,-836.02310035,9.64e-05,2]
[406551713,1771935808349,-836.02310035,9.64e-05,2]
[406551714,1771935808377,-836.02310035,9.64e-05,2]
[406551715,1771935808405,-836.02310035,9.64e-05,2]
[406551716,1771935808435,-836.02310035,9.64e-05,2]
[406551717,1771935808464,-352.01503735,9.64e-05,2]
[406551718,1771935810196,-484.008063,9.64e-05,2]
[406551719,1771935810225,-836.02310035,9.64e-05,2]
[406551720,1771935810253,-836.02310035,9.64e-05,2]
[406551721,1771935810282,-836.02310035,9.64e-05,2]
[406551722,1771935810310,-836.02310035,9.64e-05,2]
[406551723,1771935810339,-836.02310035,9.64e-05,2]
[406551724,1771935810463,-836.02310035,9.64e-05,2]
[406551725,1771935810495,-836.02310035,9.64e-05,2]
[406551726,1771935810526,-836.02310035,9.64e-05,2]
[406551727,1771935810556,-836.02310035,9.64e-05,2]
[406551728,1771935810585,-836.02310035,9.64e-05,2]
[406551729,1771935810613,-803.75589615,9.64e-05,2]
[406551730,1771935810699,-32.2672042,9.64e-05,2]
[406551731,1771935810728,-836.02310035,9.64e-05,2]
[406551732,1771935810757,-836.02310035,9.64e-05,2]
[406551733,1771935810786,-836.02310035,9.64e-05,2]
[406551734,1771935810814,-836.02310035,9.64e-05,2]
[406551735,1771935810842,-836.02310035,9.64e-05,2]
[406551736,1771935810873,-739.22148775,9.64e-05,2]
[406551737,1771935813304,-1200.0,9.639e-05,2]
[406551738,1771935813334,-96.8016126,9.64e-05,2]
[406551739,1771935813364,-836.02310035,9.64e-05,2]
[406551740,1771935813393,-836.02310035,9.64e-05,2]
[406551741,1771935813422,-836.02310035,9.64e-05,2]
[406551742,1771935813451,-836.02310035,9.64e-05,2]
[406551743,1771935813611,-836.02310035,9.64e-05,2]
[406551744,1771935813641,-836.02310035,9.64e-05,2]
[406551745,1771935813671,-836.02310035,9.64e-05,2]
[406551746,1771935813700,-836.02310035,9.64e-05,2]
[406551747,1771935813730,-836.02310035,9.64e-05,2]
[406551748,1771935813933,-803.75589615,9.64e-05,2]
[406551749,1771935814019,-32.2672042,9.64e-05,2]
[406551750,1771935814050,-836.02310035,9.64e-05,2]
[406551751,1771935814080,-836.02310035,9.64e-05,2]
[406551752,1771935814110,-836.02310035,9.64e-05,2]
[406551753,1771935814138,-836.02310035,9.64e-05,2]
[406551754,1771935814168,-836.02310035,9.64e-05,2]
[406551755,1771935814197,-744.98716431,9.64e-05,2]
[406551756,1771935822318,2899.8263,9.541e-05,2]
[406551764,1771935970856,-150.0,9.639e-05,2]
[406551765,1771935970884,-1200.0,9.639e-05,2]
[406551766,1771935980674,948.42,9.639e-05,2]
[406551767,1771935983815,4051.59,9.541e-05,2]
[406551768,1771935983836,80.8053,9.541e-05,2]
[406551769,1771935990250,5000.01,9.541e-05,2]
[406551770,1771935990273,7219.2047,9.541e-05,2]
[406551771,1771935990297,10000.01,9.541e-05,2]
[406551772,1771935990319,895.5937,9.541e-05,2]
[406551773,1771935996274,2500.0,9.541e-05,2]
[406551774,1771936021479,300.0,9.639e-05,2]
[406551775,1771936022459,150.0,9.639e-05,2]
[406551776,1771936025056,1302.0,9.616e-05,2]
[406551777,1771936033222,500.0,9.6e-05,3]
[406551778,1771936035317,1100.0,9.7e-05,3]
[406551779,1771936037416,1700.0,9.8e-05,3]
[406551780,1771936039520,2300.0,9.9e-05,3]
[406551781,1771936041625,2900.0,0.0001,3]
[406551787,1771936058894,288.90622777,9.5e-05,3]
[406551788,1771936058942,427.81245556,9.5e-05,3]
[406551789,1771936058993,538.93743775,9.5e-05,3]
[406551790,1771936102589,5000.01,9.541e-05,2]
[406551791,1771936102612,8248.01,9.541e-05,2]
[406551792,1771936102636,10000.01,9.541e-05,2]
[406551793,1771936102658,10000.01,9.541e-05,2]
[406551797,1771936126333,-500.0,9.54e-05,2]
[406551798,1771936126364,-500.0,9.54e-05,2]
[406551799,1771936126394,-500.0,9.54e-05,2]
[406551800,1771936126424,-500.0,9.54e-05,2]
[406551801,1771936126454,-500.0,9.54e-05,2]
[406551802,1771936126483,-500.0,9.54e-05,2]
[406551803,1771936126512,-500.0,9.54e-05,2]
[406551804,1771936126791,-500.0,9.54e-05,2]
[406551805,1771936126822,-500.0,9.54e-05,2]
[406551806,1771936126852,-500.0,9.54e-05,2]
[406551807,1771936127093,-500.0,9.54e-05,2]
[406551808,1771936127128,-500.0,9.54e-05,2]
[406551809,1771936127159,-500.0,9.54e-05,2]
[406551810,1771936127190,-500.0,9.54e-05,2]
[406551811,1771936127221,-500.0,9.54e-05,2]
[406551812,1771936127252,-500.0,9.54e-05,2]
[406551813,1771936127283,-500.0,9.54e-05,2]
[406551814,1771936127312,-500.0,9.54e-05,2]
[406551815,1771936127342,-500.0,9.54e-05,2]
[406551816,1771936127375,-500.0,9.54e-05,2]
[406551817,1771936127473,-500.0,9.54e-05,2]
[406551818,1771936127503,-500.0,9.54e-05,2]
[406551819,1771936127532,-500.0,9.54e-05,2]
[406551820,1771936127562,-500.0,9.54e-05,2]
[406551821,1771936127592,-500.0,9.54e-05,2]
[406551822,1771936127623,-500.0,9.54e-05,2]
[406551823,1771936127655,-500.0,9.54e-05,2]
[406551824,1771936127685,-500.0,9.54e-05,2]